fUSD/lending_fUSD_20250930
["ID","MTS","AMOUNT","RATE_DAILY","PERIOD"]
[388543680,1759236764598,-500.0,0.00020821,2]
[388543681,1759236764609,-956.14,0.00020821,2]
[388543682,1759236764620,-500.0,0.00020821,2]
[388543683,1759236764630,-500.0,0.00020821,2]
[388543684,1759236764641,-577.88,0.00020821,2]
[388543685,1759236764652,-2697.95,0.00020821,2]
[388543686,1759236764663,-1823.42,0.00020821,2]
[388543687,1759236764674,-500.0,0.00020821,2]
[388543688,1759236764685,-500.0,0.00020821,2]
[388543689,1759236764697,-803.3,0.00020821,2]
[388543690,1759236764708,-779.29,0.00020821,2]
[388543691,1759236764719,-724.75,0.00020821,2]
[388543692,1759236764729,-780.81,0.00020821,2]
[388543693,1759236764740,-788.0,0.00020821,2]
[388543694,1759236764752,-500.0,0.00020821,2]
[388543695,1759236764763,-1140.67,0.00020821,2]
[388543696,1759236764774,-2507.06,0.00020821,2]
[388543697,1759236764785,-500.0,0.00020821,2]
[388543698,1759236764797,-961.56,0.00020821,2]
[388543699,1759236764813,-500.0,0.00020821,2]
[388543700,1759236764825,-500.0,0.00020821,2]
[388543701,1759236764836,-861.63,0.00020821,2]
[388543702,1759236764856,-500.0,0.00020821,2]
[388543703,1759236764868,-2101.19,0.00020821,2]
[388543704,1759236764879,-500.0,0.00020821,2]
[388543705,1759236764891,-1215.25,0.00020821,2]
[388543706,1759236764903,-1164.62,0.00020821,2]
[388543707,1759236764914,-500.0,0.00020821,2]
[388543708,1759236764925,-2399.12,0.00020821,2]
[388543709,1759236764936,-1334.02,0.00020821,2]
[388543710,1759236764947,-1278.43,0.00020821,2]
[388543711,1759236764958,-840.44,0.00020821,2]
[388543712,1759236764969,-500.0,0.00020821,2]
[388543713,1759236764979,-500.0,0.00020821,2]
[388543714,1759236764991,-683.71,0.00020821,2]
[388543715,1759236765003,-504.4,0.00020821,2]
[388543716,1759236765015,-500.0,0.00020821,2]
[388543717,1759236765026,-500.0,0.00020821,2]
[388543718,1759236765037,-500.0,0.00020821,2]
[388543719,1759236765049,-879.58,0.00020821,2]
[388543720,1759236765060,-769.63,0.00020821,2]
[388543721,1759236765072,-1955.63,0.00020821,2]
[388543722,1759236765083,-1874.15,0.00020821,2]
[388543723,1759236765094,-1273.89,0.00020821,2]
[388543724,1759236765106,-500.0,0.00020821,2]
[388543725,1759236765118,-3314.41,0.00020821,2]
[388543726,1759236765128,-500.0,0.00020821,2]
[388543727,1759236765139,-650.69,0.00020821,2]
[388543728,1759236765150,-500.0,0.00020821,2]
[388543729,1759236765161,-500.0,0.00020821,2]
[388543730,1759236765172,-500.0,0.00020821,2]
[388543731,1759236765183,-500.0,0.00020821,2]
[388543732,1759236765196,-500.0,0.00020821,2]
[388543733,1759236765207,-500.0,0.00020821,2]
[388543734,1759236765218,-500.0,0.00020821,2]
[388543735,1759236765230,-686.0,0.00020821,2]
[388543736,1759236765243,-500.0,0.00020821,2]
[388543737,1759236765254,-500.0,0.00020821,2]
[388543738,1759236765266,-500.0,0.00020821,2]
[388543739,1759236765277,-2599.85,0.00020821,2]
[388543740,1759236765288,-500.0,0.00020821,2]
[388543741,1759236765300,-1308.84,0.00020821,2]
[388543742,1759236765311,-500.0,0.00020821,2]
[388543743,1759236765323,-500.0,0.00020821,2]
[388543744,1759236765334,-500.0,0.00020821,2]
[388543745,1759236765345,-500.0,0.00020821,2]
[388543746,1759236765356,-1204.83,0.00020821,2]
[388543747,1759236765366,-500.0,0.00020821,2]
[388543748,1759236765376,-1414.35,0.00020821,2]
[388543749,1759236765387,-721.9,0.00020821,2]
[388543750,1759236765398,-174.18280273,0.00020821,2]
[388543751,1759236765411,-500.0,0.00020821,2]
[388543752,1759236765424,-500.0,0.00020821,2]
[388543753,1759236765435,-500.0,0.00020821,2]
[388543754,1759236765446,-785.77,0.00020821,2]
[388543755,1759236765457,-589.91,0.00020821,2]
[388543756,1759236765469,-500.0,0.00020821,2]
[388543757,1759236765481,-1563.28,0.00020821,2]
[388543758,1759236765493,-1019.02,0.00020821,2]
[388543759,1759236765512,-317.207087,0.00020821,2]
[388543760,1759236765525,-500.0,0.00020821,2]
[388543761,1759236765537,-531.72,0.00020821,2]
[388543762,1759236765548,-500.0,0.00020821,2]
[388543763,1759236765560,-500.0,0.00020821,2]
[388543764,1759236765571,-1956.66,0.00020821,2]
[388543765,1759236765582,-1127.24,0.00020821,2]
[388543766,1759236765594,-758.97,0.00020821,2]
[388543767,1759236765604,-500.0,0.00020821,2]
[388543768,1759236765615,-500.0,0.00020821,2]
[388543769,1759236765626,-500.0,0.00020821,2]
[388543770,1759236765636,-557.06,0.00020821,2]
[388543771,1759236765647,-1325.61,0.00020821,2]
[388543772,1759236765659,-500.0,0.00020821,2]
[388543773,1759236765670,-1775.13,0.00020821,2]
[388543774,1759236766233,-500.0,0.00020821,2]
[388543775,1759236766252,-332.64109914,0.00020821,2]
[388543776,1759236766262,-540.37,0.00020821,2]
[388543777,1759236766272,-500.0,0.00020821,2]
[388543778,1759236766282,-298.93278116,0.00020821,2]
[388543779,1759236766291,-859.64,0.00020821,2]
[388543780,1759236766301,-1174.76,0.00020821,2]
[388543781,1759236766310,-1125.81,0.00020821,2]
[388543782,1759236766320,-512.08,0.00020821,2]
[388543783,1759236766329,-500.0,0.00020821,2]
[388543784,1759236766339,-500.0,0.00020821,2]
[388543785,1759236766349,-1660.39,0.00020821,2]
[388543786,1759236766359,-500.0,0.00020821,2]
[388543787,1759236766368,-500.0,0.00020821,2]
[388543788,1759236766378,-583.2,0.00020821,2]
[388543789,1759236766389,-500.0,0.00020821,2]
[388543790,1759236766399,-2361.75,0.00020821,2]
[388543791,1759236766408,-2361.75,0.00020821,2]
[388543792,1759236766418,-1580.78,0.00020821,2]
[388543793,1759236766428,-500.0,0.00020821,2]
[388543794,1759236766438,-3278.0,0.00020821,2]
[388543795,1759236766448,-500.0,0.00020821,2]
[388543796,1759236766457,-2646.42,0.00020821,2]
[388543797,1759236766467,-766.13,0.00020821,2]
[388543798,1759236766476,-585.79,0.00020821,2]
[388543799,1759236766486,-610.64,0.00020821,2]
[388543800,1759236766496,-819.73,0.00020821,2]
[388543801,1759236766505,-459.06734511,0.00020821,2]
[388543802,1759236766515,-500.0,0.00020821,2]
[388543803,1759236766525,-500.0,0.00020821,2]
[388543804,1759236766539,-1581.45,0.00020821,2]
[388543805,1759236766550,-716.83,0.00020821,2]
[388543806,1759236766560,-505.79,0.00020821,2]
[388543807,1759236766569,-749.24,0.00020821,2]
[388543808,1759236766579,-500.0,0.00020821,2]
[388543809,1759236766589,-784.29,0.00020821,2]
[388543810,1759236766599,-500.0,0.00020821,2]
[388543811,1759236766609,-511.55,0.00020821,2]
[388543812,1759236766619,-945.55,0.00020821,2]
[388543813,1759236766630,-500.0,0.00020821,2]
[388543814,1759236766640,-1193.9,0.00020821,2]
[388543815,1759236766650,-500.0,0.00020821,2]
[388543816,1759236766659,-500.0,0.00020821,2]
[388543817,1759236766669,-1243.67,0.00020821,2]
[388543818,1759236766679,-500.0,0.00020821,2]
[388543819,1759236766688,-500.0,0.00020821,2]
[388543820,1759236766699,-1156.41,0.00020821,2]
[388543821,1759236766710,-500.0,0.00020821,2]
[388543822,1759236766721,-500.0,0.00020821,2]
[388543823,1759236766731,-595.67,0.00020821,2]
[388543824,1759236766740,-500.0,0.00020821,2]
[388543825,1759236766750,-500.0,0.00020821,2]
[388543826,1759236766760,-500.0,0.00020821,2]
[388543827,1759236766769,-2989.39,0.00020821,2]
[388543828,1759236766779,-500.0,0.00020821,2]
[388543829,1759236766789,-588.07,0.00020821,2]
[388543830,1759236766799,-500.0,0.00020821,2]
[388543831,1759236766809,-256.93342848,0.00020821,2]
[388543832,1759236766819,-680.87,0.00020821,2]
[388543833,1759236766829,-652.5,0.00020821,2]
[388543834,1759236766839,-500.0,0.00020821,2]
[388543835,1759236766849,-500.0,0.00020821,2]
[388543836,1759236766861,-1030.88,0.00020821,2]
[388543837,1759236766876,-500.0,0.00020821,2]
[388543838,1759236766886,-641.82,0.00020821,2]
[388543839,1759236766896,-500.0,0.00020821,2]
[388543840,1759236766907,-500.0,0.00020821,2]
[388543841,1759236766917,-1386.24,0.00020821,2]
[388543842,1759236766926,-839.19,0.00020821,2]
[388543843,1759236766936,-500.0,0.00020821,2]
[388543844,1759236766947,-500.0,0.00020821,2]
[388543845,1759236766956,-1351.91,0.00020821,2]
[388543846,1759236766966,-946.99,0.00020821,2]
[388543847,1759236766976,-795.93,0.00020821,2]
[388543848,1759236766986,-500.0,0.00020821,2]
[388543849,1759236766995,-870.82,0.00020821,2]
[388543850,1759236767003,-500.0,0.00020821,2]
[388543851,1759236767013,-500.0,0.00020821,2]
[388543852,1759236767023,-538.01,0.00020821,2]
[388543853,1759236767032,-852.65,0.00020821,2]
[388543854,1759236767042,-500.0,0.00020821,2]
[388543855,1759236767051,-517.57,0.00020821,2]
[388543856,1759236767061,-1588.62,0.00020821,2]
[388543857,1759236767071,-670.32,0.00020821,2]
[388543858,1759236767080,-500.0,0.00020821,2]
[388543859,1759236767090,-453.28364622,0.00020821,2]
[388543860,1759236767100,-500.0,0.00020821,2]
[388543861,1759236767111,-500.0,0.00020821,2]
[388543862,1759236767121,-1409.18,0.00020821,2]
[388543863,1759236767131,-1632.14,0.00020821,2]
[388543864,1759236767140,-500.0,0.00020821,2]
[388543865,1759236767150,-3131.99,0.00020821,2]
[388543866,1759236767160,-890.61,0.00020821,2]
[388543867,1759236767169,-1628.15,0.00020821,2]
[388543868,1759236767178,-650.41,0.00020821,2]
[388543869,1759236767188,-2154.22,0.00020821,2]
[388543870,1759236767197,-499.66486211,0.00020821,2]
[388543871,1759236767207,-460.0,0.00020821,2]
[388543872,1759236767216,-500.0,0.00020821,2]
[388543873,1759236767226,-500.0,0.00020821,2]
[388543874,1759236767236,-912.82,0.00020821,2]
[388543875,1759236767245,-1825.23,0.00020821,2]
[388543876,1759236767256,-1825.23,0.00020821,2]
[388543877,1759236767266,-512.57,0.00020821,2]
[388543878,1759236767276,-885.4,0.00020821,2]
[388543879,1759236767286,-500.0,0.00020821,2]
[388543880,1759236767296,-1622.23,0.00020821,2]
[388543881,1759236767306,-500.0,0.00020821,2]
[388543882,1759236767317,-500.0,0.00020821,2]
[388543883,1759236767327,-500.0,0.00020821,2]
[388543884,1759236767337,-500.0,0.00020821,2]
[388543885,1759236767346,-1277.63,0.00020821,2]
[388543886,1759236767356,-695.83,0.00020821,2]
[388543887,1759236767366,-500.0,0.00020821,2]
[388543888,1759236767375,-620.42,0.00020821,2]
[388543889,1759236767384,-1030.07,0.00020821,2]
[388543890,1759236767393,-500.0,0.00020821,2]
[388543891,1759236767403,-500.0,0.00020821,2]
[388543892,1759236767412,-1095.55,0.00020821,2]
[388543893,1759236767421,-500.0,0.00020821,2]
[388543894,1759236767431,-685.27,0.00020821,2]
[388543895,1759236767440,-500.0,0.00020821,2]
[388543896,1759236767449,-2674.6,0.00020821,2]
[388543897,1759236767458,-2382.65,0.00020821,2]
[388543898,1759236767468,-547.2712154,0.00020821,2]
[388543899,1759236767477,-1292.53,0.00020821,2]
[388543900,1759236767487,-3185.15,0.00020821,2]
[388543901,1759236767497,-500.0,0.00020821,2]
[388543902,1759236767507,-1956.66,0.00020821,2]
[388543903,1759236767517,-500.0,0.00020821,2]
[388543904,1759236767528,-1422.36,0.00020821,2]
[388543905,1759236767537,-500.0,0.00020821,2]
[388543906,1759236767547,-794.69,0.00020821,2]
[388543907,1759236767556,-534.36,0.00020821,2]
[388543908,1759236767565,-500.0,0.00020821,2]
[388543909,1759236767576,-500.0,0.00020821,2]
[388543910,1759236767586,-500.0,0.00020821,2]
[388543911,1759236767595,-500.0,0.00020821,2]
[388543912,1759236767604,-500.0,0.00020821,2]
[388543913,1759236767614,-500.0,0.00020821,2]
[388543914,1759236767623,-2498.24,0.00020821,2]
[388543915,1759236767634,-500.0,0.00020821,2]
[388543916,1759236767644,-1125.03,0.00020821,2]
[388543917,1759236767653,-796.57,0.00020821,2]
[388543918,1759236767663,-500.0,0.00020821,2]
[388543919,1759236767672,-467.10668253,0.00020821,2]
[388543920,1759236767682,-2448.47,0.00020821,2]
[388543921,1759236767692,-500.0,0.00020821,2]
[388543922,1759236767702,-548.22,0.00020821,2]
[388543923,1759236767711,-572.4,0.00020821,2]
[388543924,1759236767721,-2221.26,0.00020821,2]
[388543925,1759236767730,-1388.86,0.00020821,2]
[388543926,1759236767740,-500.0,0.00020821,2]
[388543927,1759236767749,-500.0,0.00020821,2]
[388543928,1759236767759,-500.0,0.00020821,2]
[388543929,1759236767769,-1006.6,0.00020821,2]
[388543930,1759236767780,-2005.31,0.00020821,2]
[388543931,1759236767789,-500.0,0.00020821,2]
[388543932,1759236767799,-500.0,0.00020821,2]
[388543933,1759236767808,-500.0,0.00020821,2]
[388543934,1759236767817,-500.0,0.00020821,2]
[388543935,1759236767827,-500.0,0.00020821,2]
[388543936,1759236767836,-620.09,0.00020821,2]
[388543937,1759236767846,-624.7,0.00020821,2]
[388543938,1759236767855,-500.0,0.00020821,2]
[388543939,1759236767869,-500.0,0.00020821,2]
[388543940,1759236767879,-500.0,0.00020821,2]
[388543941,1759236767893,-1612.7,0.00020821,2]
[388543942,1759236767903,-500.0,0.00020821,2]
[388543943,1759236767913,-500.0,0.00020821,2]
[388543944,1759236767924,-500.0,0.00020821,2]
[388543945,1759236767933,-1573.58,0.00020821,2]
[388543946,1759236767943,-1104.98,0.00020821,2]
[388543947,1759236767953,-757.95,0.00020821,2]
[388543948,1759236767962,-1642.32,0.00020821,2]
[388543949,1759236767973,-598.52,0.00020821,2]
[388543950,1759236767983,-500.0,0.00020821,2]
[388543951,1759236767994,-1693.84,0.00020821,2]
[388543952,1759236768004,-719.09,0.00020821,2]
[388543953,1759236768013,-500.0,0.00020821,2]
[388543954,1759236768023,-500.0,0.00020821,2]
[388543955,1759236768032,-677.44,0.00020821,2]
[388543956,1759236768042,-500.0,0.00020821,2]
[388543957,1759236768052,-500.0,0.00020821,2]
[388543958,1759236768062,-2521.54,0.00020821,2]
[388543959,1759236768072,-3585.86,0.00020821,2]
[388543960,1759236768081,-500.0,0.00020821,2]
[388543961,1759236768091,-2800.4,0.00020821,2]
[388543962,1759236768100,-603.61932911,0.00020821,2]
[388543963,1759236768112,-1137.08,0.00020821,2]
[388543964,1759236768126,-547.83,0.00020821,2]
[388543965,1759236768136,-747.88,0.00020821,2]
[388543966,1759236768145,-500.0,0.00020821,2]
[388543967,1759236768155,-5163.16,0.00020821,2]
[388543968,1759236768165,-165.83053096,0.00020821,2]
[388543969,1759236768175,-628.52,0.00020821,2]
[388543970,1759236768184,-500.0,0.00020821,2]
[388543971,1759236768194,-409.93,0.00020821,2]
[388543972,1759236768204,-900.53,0.00020821,2]
[388543973,1759236768218,-500.0,0.00020821,2]
[388543974,1759236768227,-1711.35,0.00020821,2]
[388543975,1759236768237,-500.0,0.00020821,2]
[388543976,1759236768247,-500.0,0.00020821,2]
[388543977,1759236768256,-627.88,0.00020821,2]
[388543978,1759236768266,-512.86,0.00020821,2]
[388543979,1759236768275,-3534.18,0.00020821,2]
[388543980,1759236768284,-500.0,0.00020821,2]
[388543981,1759236768298,-500.0,0.00020821,2]
[388543982,1759236768310,-562.54,0.00020821,2]
[388543983,1759236768320,-789.35,0.00020821,2]
[388543984,1759236768330,-560.58,0.00020821,2]
[388543985,1759236768340,-500.0,0.00020821,2]
[388543986,1759236768349,-500.0,0.00020821,2]
[388543987,1759236768360,-500.0,0.00020821,2]
[388543988,1759236768369,-2386.02,0.00020821,2]
[388543989,1759236768378,-500.0,0.00020821,2]
[388543990,1759236768388,-500.0,0.00020821,2]
[388543991,1759236768398,-1076.9,0.00020821,2]
[388543992,1759236768410,-3657.67,0.00020821,2]
[388543993,1759236768420,-1041.83,0.00020821,2]
[388543994,1759236768430,-3224.35,0.00020821,2]
[388543995,1759236768441,-500.0,0.00020821,2]
[388543996,1759236768453,-773.33,0.00020821,2]
[388543997,1759236768463,-2187.82,0.00020821,2]
[388543998,1759236768473,-1760.32,0.00020821,2]
[388543999,1759236768484,-1240.5,0.00020821,2]
[388544000,1759236768494,-2690.42,0.00020821,2]
[388544001,1759236768504,-4935.23,0.00020821,2]
[388544002,1759236768513,-1587.13,0.00020821,2]
[388544003,1759236768523,-500.0,0.00020821,2]
[388544004,1759236768533,-640.07,0.00020821,2]
[388544005,1759236768543,-500.0,0.00020821,2]
[388544006,1759236768553,-3353.46,0.00020821,2]
[388544007,1759236768563,-2314.25,0.00020821,2]
[388544008,1759236768572,-1533.53,0.00020821,2]
[388544009,1759236768582,-500.0,0.00020821,2]
[388544010,1759236768592,-782.37,0.00020821,2]
[388544011,1759236768603,-6485.87,0.00020821,2]
[388544012,1759236768612,-5250.86,0.00020821,2]
[388544013,1759236768622,-771.28,0.00020821,2]
[388544014,1759236768631,-500.0,0.00020821,2]
[388544015,1759236768913,-3509.91,0.00020821,2]
[388544016,1759236768922,-500.0,0.00020821,2]
[388544017,1759236768932,-500.0,0.00020821,2]
[388544018,1759236768944,-1098.61,0.00020821,2]
[388544019,1759236768954,-337.9419624,0.00020821,2]
[388544020,1759236768964,-2880.85,0.00020821,2]
[388544021,1759236768974,-500.0,0.00020821,2]
[388544022,1759236768983,-524.9,0.00020821,2]
[388544023,1759236768993,-500.0,0.00020821,2]
[388544024,1759236769003,-2100.64,0.00020821,2]
[388544025,1759236769012,-500.0,0.00020821,2]
[388544026,1759236769022,-1955.1,0.00020821,2]
[388544027,1759236769031,-1615.18,0.00020821,2]
[388544028,1759236769041,-571.65,0.00020821,2]
[388544029,1759236769050,-663.18,0.00020821,2]
[388544030,1759236769060,-500.0,0.00020821,2]
[388544031,1759236769069,-1218.74,0.00020821,2]
[388544032,1759236769079,-2233.57,0.00020821,2]
[388544033,1759236769090,-1109.61,0.00020821,2]
[388544034,1759236769100,-500.0,0.00020821,2]
[388544035,1759236769110,-500.0,0.00020821,2]
[388544036,1759236769120,-705.44,0.00020821,2]
[388544037,1759236769129,-500.0,0.00020821,2]
[388544038,1759236769139,-551.13,0.00020821,2]
[388544039,1759236769148,-500.0,0.00020821,2]
[388544040,1759236769158,-5689.13,0.00020821,2]
[388544041,1759236769167,-4642.17,0.00020821,2]
[388544042,1759236769177,-1432.91,0.00020821,2]
[388544043,1759236769186,-977.34,0.00020821,2]
[388544044,1759236769196,-500.0,0.00020821,2]
[388544045,1759236769206,-500.0,0.00020821,2]
[388544046,1759236769216,-1417.17,0.00020821,2]
[388544047,1759236769225,-201.40822118,0.00020821,2]
[388544048,1759236769235,-1566.99,0.00020821,2]
[388544049,1759236769244,-2166.0,0.00020821,2]
[388544050,1759236769254,-3509.0,0.00020821,2]
[388544051,1759236769263,-500.0,0.00020821,2]
[388544052,1759236769281,-500.0,0.00020821,2]
[388544053,1759236769293,-500.0,0.00020821,2]
[388544054,1759236769302,-596.77,0.00020821,2]
[388544055,1759236769313,-494.29741488,0.00020821,2]
[388544056,1759236769323,-500.0,0.00020821,2]
[388544057,1759236769332,-642.61,0.00020821,2]
[388544058,1759236769341,-2949.36,0.00020821,2]
[388544059,1759236769351,-2718.85,0.00020821,2]
[388544060,1759236769361,-500.0,0.00020821,2]
[388544061,1759236769370,-795.8,0.00020821,2]
[388544062,1759236769380,-3687.17,0.00020821,2]
[388544063,1759236769390,-1201.28,0.00020821,2]
[388544064,1759236769401,-684.53,0.00020821,2]
[388544065,1759236769412,-4592.8,0.00020821,2]
[388544066,1759236769421,-500.0,0.00020821,2]
[388544067,1759236769431,-1286.78,0.00020821,2]
[388544068,1759236769442,-4326.28,0.00020821,2]
[388544069,1759236769452,-500.0,0.00020821,2]
[388544070,1759236769461,-500.0,0.00020821,2]
[388544071,1759236769472,-500.0,0.00020821,2]
[388544072,1759236769483,-500.0,0.00020821,2]
[388544073,1759236769492,-2180.29,0.00020821,2]
[388544074,1759236769503,-500.0,0.00020821,2]
[388544075,1759236769512,-500.0,0.00020821,2]
[388544076,1759236769523,-233.34263638,0.00020821,2]
[388544077,1759236769533,-500.0,0.00020821,2]
[388544078,1759236769543,-532.98,0.00020821,2]
[388544079,1759236769552,-4847.84,0.00020821,2]
[388544080,1759236769563,-608.6,0.00020821,2]
[388544081,1759236769575,-500.0,0.00020821,2]
[388544082,1759236769585,-500.0,0.00020821,2]
[388544083,1759236769594,-4847.82,0.00020821,2]
[388544084,1759236769603,-500.0,0.00020821,2]
[388544085,1759236769613,-500.0,0.00020821,2]
[388544086,1759236769624,-3800.58,0.00020821,2]
[388544087,1759236769634,-500.0,0.00020821,2]
[388544088,1759236769645,-500.0,0.00020821,2]
[388544089,1759236769654,-1789.31,0.00020821,2]
[388544090,1759236769665,-701.03,0.00020821,2]
[388544091,1759236769674,-2662.14,0.00020821,2]
[388544092,1759236769684,-2533.68,0.00020821,2]
[388544093,1759236769698,-298.34650185,0.00020821,2]
[388544094,1759236769709,-500.0,0.00020821,2]
[388544095,1759236769718,-500.0,0.00020821,2]
[388544096,1759236769728,-2806.65,0.00020821,2]
[388544097,1759236769739,-500.0,0.00020821,2]
[388544098,1759236769748,-8671.548947,0.00020821,2]
[388544099,1759236769761,-500.0,0.00020821,2]
[388544100,1759236769772,-3307.6,0.00020821,2]
[388544101,1759236769782,-500.0,0.00020821,2]
[388544102,1759236769793,-1877.95,0.00020821,2]
[388544103,1759236769803,-4344.73,0.00020821,2]
[388544104,1759236769812,-1232.05,0.00020821,2]
[388544105,1759236769823,-385.303121,0.00020821,2]
[388544106,1759236769832,-316.486851,0.00020821,2]
[388544107,1759236769842,-500.0,0.00020821,2]
[388544108,1759236769852,-1688.46,0.00020821,2]
[388544109,1759236769864,-3390.857945,0.00020821,2]
[388544110,1759236769874,-374.715851,0.00020821,2]
[388544111,1759236769883,-500.0,0.00020821,2]
[388544112,1759236769893,-898.43,0.00020821,2]
[388544113,1759236769903,-7423.351587,0.00020821,2]
[388544114,1759236769914,-5020.85,0.00020821,2]
[388544115,1759236769925,-773.64,0.00020821,2]
[388544116,1759236769934,-4173.34,0.00020821,2]
[388544117,1759236769945,-2033.24,0.00020821,2]
[388544118,1759236769954,-500.0,0.00020821,2]
[388544119,1759236769964,-500.0,0.00020821,2]
[388544120,1759236769974,-1401.38,0.00020821,2]
[388544121,1759236769983,-2013.75,0.00020821,2]
[388544122,1759236769994,-500.0,0.00020821,2]
[388544123,1759236770004,-500.0,0.00020821,2]
[388544124,1759236770015,-3105.83,0.00020821,2]
[388544125,1759236770030,-2207.05,0.00020821,2]
[388544126,1759236770040,-3439.22,0.00020821,2]
[388544127,1759236770049,-3888.52,0.00020821,2]
[388544128,1759236770059,-3031.79,0.00020821,2]
[388544129,1759236770068,-500.0,0.00020821,2]
[388544130,1759236770077,-500.0,0.00020821,2]
[388544131,1759236770088,-2473.07,0.00020821,2]
[388544132,1759236770102,-500.0,0.00020821,2]
[388544133,1759236770112,-500.0,0.00020821,2]
[388544134,1759236770122,-659.75,0.00020821,2]
[388544135,1759236770131,-3168.12,0.00020821,2]
[388544136,1759236770141,-500.0,0.00020821,2]
[388544137,1759236770150,-2996.33,0.00020821,2]
[388544138,1759236770160,-500.0,0.00020821,2]
[388544139,1759236770169,-2000.64,0.00020821,2]
[388544140,1759236770179,-500.0,0.00020821,2]
[388544141,1759236770188,-500.0,0.00020821,2]
[388544142,1759236770198,-1390.14,0.00020821,2]
[388544143,1759236770207,-3873.86,0.00020821,2]
[388544144,1759236770216,-1903.48,0.00020821,2]
[388544145,1759236770226,-3324.17,0.00020821,2]
[388544146,1759236770235,-500.0,0.00020821,2]
[388544147,1759236770245,-500.0,0.00020821,2]
[388544148,1759236770255,-4579.72,0.00020821,2]
[388544149,1759236770265,-3419.82,0.00020821,2]
[388544150,1759236770275,-3713.1,0.00020821,2]
[388544151,1759236770285,-500.0,0.00020821,2]
[388544152,1759236770294,-772.84,0.00020821,2]
[388544153,1759236770304,-500.0,0.00020821,2]
[388544154,1759236770313,-2506.86,0.00020821,2]
[388544155,1759236770323,-2339.41,0.00020821,2]
[388544156,1759236770333,-560.42,0.00020821,2]
[388544157,1759236770342,-2792.33,0.00020821,2]
[388544158,1759236770352,-1899.13,0.00020821,2]
[388544159,1759236770362,-4139.96,0.00020821,2]
[388544160,1759236770372,-604.76,0.00020821,2]
[388544161,1759236770382,-872.23,0.00020821,2]
[388544162,1759236770392,-1756.01,0.00020821,2]
[388544163,1759236770402,-1299.41,0.00020821,2]
[388544164,1759236770412,-1184.74,0.00020821,2]
[388544165,1759236770422,-500.0,0.00020821,2]
[388544166,1759236770431,-1843.86,0.00020821,2]
[388544167,1759236770441,-500.0,0.00020821,2]
[388544168,1759236770451,-500.0,0.00020821,2]
[388544169,1759236770461,-500.0,0.00020821,2]
[388544170,1759236770471,-5305.3,0.00020821,2]
[388544171,1759236770480,-881.11,0.00020821,2]
[388544172,1759236770494,-313.28433657,0.00020821,2]
[388544173,1759236770504,-6734.31,0.00020821,2]
[388544174,1759236770514,-500.0,0.00020821,2]
[388544175,1759236770525,-740.42,0.00020821,2]
[388544176,1759236770534,-517.4,0.00020821,2]
[388544177,1759236770544,-500.0,0.00020821,2]
[388544178,1759236770554,-3043.79,0.00020821,2]
[388544179,1759236770563,-500.0,0.00020821,2]